fUST/lending_fUST_20260528
["ID","MTS","AMOUNT","RATE_DAILY","PERIOD"]
[423203168,1779922250000,-269.53,0.00016307,2]
[423203169,1779922250000,-269.53,0.00016309,2]
[423203170,1779922250000,-269.53,0.00016309,2]
[423203174,1779922250000,-3000.0,0.0001633,2]
[423203173,1779922250000,-3000.0,0.0001632,2]
[423203157,1779922250000,-1022116.9186,0.00016249,7]
[423203172,1779922250000,-3000.0,0.0001631,2]
[423203189,1779922250000,-200.0,0.00016438,2]
[423203178,1779922250000,-3000.0,0.0001636,2]
[423203177,1779922250000,-3000.0,0.0001635,2]
[423203179,1779922250000,-3000.0,0.0001637,2]
[423203180,1779922250000,-3000.0,0.0001638,2]
[423203181,1779922250000,-3000.0,0.0001639,2]
[423203184,1779922250000,-1279.19816855,0.000164,2]
[423203182,1779922250000,-151.04,0.000164,2]
[423203185,1779922250000,-9079.40479527,0.000164,2]
[423203190,1779922250000,-171.7,0.00016438,2]
[423203183,1779922250000,-3000.0,0.000164,2]
[423203186,1779922250000,-3000.0,0.0001641,2]
[423203187,1779922250000,-3000.0,0.0001642,2]
[423203188,1779922250000,-3000.0,0.0001643,2]
[423203161,1779922250000,-3000.0,0.0001628,2]
[423203129,1779922250000,-3000.0,0.0001604,2]
[423203159,1779922250000,-3000.0,0.0001626,2]
[423203160,1779922250000,-3000.0,0.0001627,2]
[423203130,1779922250000,-3000.0,0.0001605,2]
[423203131,1779922250000,-3000.0,0.0001606,2]
[423203132,1779922250000,-3000.0,0.0001607,2]
[423203134,1779922250000,-3000.0,0.0001609,2]
[423203133,1779922250000,-3000.0,0.0001608,2]
[423203135,1779922250000,-200.0,0.000161,2]
[423203138,1779922250000,-1279.19816855,0.000161,2]
[423203140,1779922250000,-3000.0,0.0001611,2]
[423203141,1779922250000,-3000.0,0.0001612,2]
[423203144,1779922250000,-3000.0,0.0001615,2]
[423203146,1779922250000,-3000.0,0.0001617,2]
[423203143,1779922250000,-3000.0,0.0001614,2]
[423203142,1779922250000,-3000.0,0.0001613,2]
[423203128,1779922250000,-3000.0,0.0001603,2]
[423203139,1779922250000,-9079.40479527,0.000161,2]
[423203145,1779922250000,-3000.0,0.0001616,2]
[423203154,1779922250000,-3000.0,0.0001622,2]
[423203153,1779922250000,-3000.0,0.0001621,2]
[423203156,1779922250000,-3000.0,0.0001624,2]
[423203155,1779922250000,-3000.0,0.0001623,2]
[423203162,1779922250000,-3000.0,0.0001629,2]
[423203158,1779922250000,-3000.0,0.0001625,2]
[423203152,1779922250000,-9079.40479527,0.000162,2]
[423203149,1779922250000,-151.04,0.000162,2]
[423203148,1779922250000,-3000.0,0.0001619,2]
[423203150,1779922250000,-3000.0,0.000162,2]
[423203147,1779922250000,-3000.0,0.0001618,2]
[423203163,1779922250000,-3000.0,0.000163,2]
[423203230,1779922251000,-152.11846,0.00016438,2]
[423203231,1779922251000,-152.11847,0.00016438,2]
[423203228,1779922251000,-152.11846,0.00016438,2]
[423203226,1779922251000,-152.11846,0.00016438,2]
[423203227,1779922251000,-152.11846,0.00016438,2]
[423203221,1779922251000,-152.11846,0.00016438,2]
[423203217,1779922251000,-152.11846,0.00016438,2]
[423203229,1779922251000,-152.11846,0.00016438,2]
[423203224,1779922251000,-152.11846,0.00016438,2]
[423203232,1779922251000,-200.0,0.00016438,3]
[423203223,1779922251000,-152.11846,0.00016438,2]
[423203225,1779922251000,-152.11846,0.00016438,2]
[423203233,1779922251000,-200.0,0.00016438,3]
[423203240,1779922251000,-151.0,0.00016438,2]
[423203247,1779922251000,-175.661506,0.00016438,2]
[423203235,1779922251000,-200.0,0.00016438,3]
[423203237,1779922251000,-200.0,0.00016438,3]
[423203246,1779922251000,-175.661506,0.00016438,2]
[423203238,1779922251000,-153.726261,0.00016438,2]
[423203245,1779922251000,-231.712135,0.00016438,2]
[423203239,1779922251000,-151.0,0.00016438,2]
[423203243,1779922251000,-151.0,0.00016438,2]
[423203241,1779922251000,-151.0,0.00016438,2]
[423203242,1779922251000,-151.0,0.00016438,2]
[423203244,1779922251000,-151.0,0.00016438,2]
[423203222,1779922251000,-152.11846,0.00016438,2]
[423203236,1779922251000,-200.0,0.00016438,3]
[423203218,1779922251000,-152.11846,0.00016438,2]
[423203204,1779922251000,-484.9,0.00016438,2]
[423203216,1779922251000,-152.11846,0.00016438,2]
[423203192,1779922251000,-484.9,0.00016438,2]
[423203191,1779922251000,-246.37197754,0.00016438,7]
[423203193,1779922251000,-484.9,0.00016438,2]
[423203194,1779922251000,-484.9,0.00016438,2]
[423203201,1779922251000,-484.9,0.00016438,2]
[423203196,1779922251000,-484.9,0.00016438,2]
[423203202,1779922251000,-484.9,0.00016438,2]
[423203200,1779922251000,-484.9,0.00016438,2]
[423203195,1779922251000,-484.9,0.00016438,2]
[423203198,1779922251000,-484.9,0.00016438,2]
[423203197,1779922251000,-484.9,0.00016438,2]
[423203199,1779922251000,-484.9,0.00016438,2]
[423203220,1779922251000,-152.11846,0.00016438,2]
[423203214,1779922251000,-152.11846,0.00016438,2]
[423203210,1779922251000,-484.9,0.00016438,2]
[423203203,1779922251000,-484.9,0.00016438,2]
[423203206,1779922251000,-484.9,0.00016438,2]
[423203208,1779922251000,-484.9,0.00016438,2]
[423203215,1779922251000,-152.11846,0.00016438,2]
[423203205,1779922251000,-484.9,0.00016438,2]
[423203207,1779922251000,-484.9,0.00016438,2]
[423203209,1779922251000,-484.9,0.00016438,2]
[423203211,1779922251000,-484.9,0.00016438,2]
[423203212,1779922251000,-152.11846,0.00016438,2]
[423203213,1779922251000,-152.11846,0.00016438,2]
[423203219,1779922251000,-152.11846,0.00016438,2]
[423203248,1779922251000,-175.661506,0.00016438,2]
[423203249,1779922251000,-175.661506,0.00016438,2]
[423203234,1779922251000,-200.0,0.00016438,3]
[423203251,1779922251000,-175.661506,0.00016438,2]
[423203278,1779922251000,-3000.0,0.0001656,2]
[423203280,1779922251000,-151.04,0.000166,2]
[423203285,1779922251000,-151.04,0.000168,2]
[423203295,1779922251000,-200.0,0.000171,2]
[423203296,1779922251000,-1279.19816855,0.000171,2]
[423203284,1779922251000,-1279.19816855,0.000167,2]
[423203289,1779922251000,-7313.25701688,0.00017,2]
[423203288,1779922251000,-151.04,0.00017,2]
[423203290,1779922251000,-113069.20350767,0.00017,2]
[423203292,1779922251000,-766.98895499,0.00017,7]
[423203286,1779922251000,-5680.75332409,0.00016833,2]
[423203287,1779922251000,-1279.19816855,0.000169,2]
[423203294,1779922251000,-190.635557,0.00017074,2]
[423203293,1779922251000,-160.0,0.00017,7]
[423203297,1779922251000,-17042.02728828,0.0001718,2]
[423203298,1779922251000,-166.20086744,0.0001718,2]
[423203300,1779922251000,-5680.75332409,0.00017316,2]
[423203302,1779922251000,-151.21,0.000174,2]
[423203304,1779922251000,-151.04,0.000176,2]
[423203299,1779922251000,-151.04,0.000172,2]
[423203305,1779922251000,-2166.33377567,0.000176,2]
[423203307,1779922251000,-102567.51317706,0.000178,2]
[423203301,1779922251000,-151.04,0.000174,2]
[423203306,1779922251000,-5680.75332409,0.00017799,2]
[423203303,1779922251000,-570.50122669,0.00017544,2]
[423203252,1779922251000,-175.661506,0.00016438,2]
[423203308,1779922251000,-23432.48682294,0.000178,2]
[423203281,1779922251000,-151.2,0.000166,2]
[423203274,1779922251000,-3000.0,0.0001652,2]
[423203291,1779922251000,-200.0,0.00017,2]
[423203276,1779922251000,-3000.0,0.0001654,2]
[423203253,1779922251000,-175.661506,0.00016438,2]
[423203283,1779922251000,-385.323488,0.00016629,2]
[423203257,1779922251000,-175.661506,0.00016438,2]
[423203256,1779922251000,-175.661506,0.00016438,2]
[423203254,1779922251000,-175.661506,0.00016438,2]
[423203255,1779922251000,-175.661506,0.00016438,2]
[423203258,1779922251000,-175.661506,0.00016438,2]
[423203260,1779922251000,-175.661506,0.00016438,2]
[423203250,1779922251000,-175.661506,0.00016438,2]
[423203271,1779922251000,-3000.0,0.0001649,2]
[423203259,1779922251000,-175.661506,0.00016438,2]
[423203261,1779922251000,-175.661506,0.00016438,2]
[423203267,1779922251000,-3000.0,0.0001645,2]
[423203262,1779922251000,-175.661506,0.00016438,2]
[423203270,1779922251000,-3000.0,0.0001648,2]
[423203264,1779922251000,-175.661506,0.00016438,2]
[423203282,1779922251000,-1279.19816855,0.000166,2]
[423203275,1779922251000,-3000.0,0.0001653,2]
[423203277,1779922251000,-3000.0,0.0001655,2]
[423203273,1779922251000,-3000.0,0.0001651,2]
[423203272,1779922251000,-3000.0,0.000165,2]
[423203279,1779922251000,-5639.825773,0.0001657,2]
[423203265,1779922251000,-175.661509,0.00016438,2]
[423203268,1779922251000,-3000.0,0.0001646,2]
[423203266,1779922251000,-3000.0,0.0001644,2]
[423203263,1779922251000,-175.661506,0.00016438,2]
[423203269,1779922251000,-3000.0,0.0001647,2]
[423203355,1779922252000,-511.61655018,0.000182,2]
[423203352,1779922252000,-1990.29617374,0.000182,2]
[423203349,1779922252000,-201.0,0.00018082,3]
[423203351,1779922252000,-162.71220747,0.000182,2]
[423203350,1779922252000,-181.38,0.000181,2]
[423203345,1779922252000,-211.22,0.00018,2]
[423203343,1779922252000,-560.45641049,0.00018,2]
[423203340,1779922252000,-1860.28198548,0.00018,2]
[423203344,1779922252000,-1136.24842665,0.00018,2]
[423203339,1779922252000,-435.44011652,0.00018,2]
[423203341,1779922252000,-701.26637796,0.00018,2]
[423203348,1779922252000,-766.98895499,0.00018,7]
[423203357,1779922252000,-1860.28198548,0.000182,2]
[423203370,1779922252000,-300.0,0.00018247,2]
[423203353,1779922252000,-470.89841185,0.000182,2]
[423203359,1779922252000,-767.12242937,0.000182,2]
[423203358,1779922252000,-701.26637796,0.000182,2]
[423203354,1779922252000,-396.38753763,0.000182,2]
[423203360,1779922252000,-560.45641049,0.000182,2]
[423203362,1779922252000,-300.0,0.00018247,2]
[423203372,1779922252000,-300.0,0.00018247,2]
[423203361,1779922252000,-1136.24842665,0.000182,2]
[423203364,1779922252000,-300.0,0.00018247,2]
[423203365,1779922252000,-300.0,0.00018247,2]
[423203363,1779922252000,-300.0,0.00018247,2]
[423203369,1779922252000,-300.0,0.00018247,2]
[423203338,1779922252000,-511.61655018,0.00018,2]
[423203356,1779922252000,-435.44011652,0.000182,2]
[423203336,1779922252000,-470.89841185,0.00018,2]
[423203318,1779922252000,-4377.51,0.00017808,7]
[423203346,1779922252000,-211.22,0.00018,2]
[423203366,1779922252000,-300.0,0.00018247,2]
[423203309,1779922252000,-1465.13169601,0.000178,30]
[423203317,1779922252000,-4377.51,0.00017808,7]
[423203321,1779922252000,-2501.43,0.00017808,2]
[423203319,1779922252000,-4377.51,0.00017808,7]
[423203320,1779922252000,-4377.52,0.00017808,7]
[423203310,1779922252000,-139000.0,0.00017808,30]
[423203313,1779922252000,-4585.96,0.00017808,2]
[423203311,1779922252000,-4585.96,0.00017808,2]
[423203312,1779922252000,-4585.96,0.00017808,2]
[423203315,1779922252000,-4585.96,0.00017808,2]
[423203316,1779922252000,-4586.0,0.00017808,2]
[423203314,1779922252000,-4585.96,0.00017808,2]
[423203322,1779922252000,-2501.44,0.00017808,2]
[423203324,1779922252000,-1414.0,0.00017897,2]
[423203323,1779922252000,-181.19,0.00017808,2]
[423203325,1779922252000,-100445.42729037,0.00018,30]
[423203326,1779922252000,-158324.83973593,0.00018,8]
[423203334,1779922252000,-162.71220747,0.00018,2]
[423203329,1779922252000,-200.77047149,0.00018,2]
[423203328,1779922252000,-1684.39556265,0.00018,2]
[423203331,1779922252000,-10000.0,0.00018,2]
[423203327,1779922252000,-300000.0,0.00018,5]
[423203333,1779922252000,-160.0,0.00018,30]
[423203332,1779922252000,-10000.0,0.00018,2]
[423203330,1779922252000,-10000.0,0.00018,2]
[423203335,1779922252000,-1990.29617374,0.00018,2]
[423203337,1779922252000,-396.38753763,0.00018,2]
[423203342,1779922252000,-767.12242937,0.00018,2]
[423203347,1779922252000,-211.22,0.00018,2]
[423203371,1779922252000,-300.0,0.00018247,2]
[423203387,1779922252000,-300.0,0.00018274,2]
[423203368,1779922252000,-300.0,0.00018247,2]
[423203401,1779922252000,-767.12242937,0.000184,2]
[423203407,1779922252000,-470.89841185,0.000185,2]
[423203408,1779922252000,-396.38753763,0.000185,2]
[423203406,1779922252000,-1990.29617374,0.000185,2]
[423203419,1779922252000,-151.0,0.00018656,4]
[423203418,1779922252000,-6642.97,0.0001863,2]
[423203412,1779922252000,-701.26637796,0.000185,2]
[423203420,1779922252000,-1990.29617374,0.000187,2]
[423203423,1779922252000,-511.61655018,0.000187,2]
[423203411,1779922252000,-1860.28198548,0.000185,2]
[423203421,1779922252000,-470.89841185,0.000187,2]
[423203413,1779922252000,-767.12242937,0.000185,2]
[423203415,1779922252000,-1136.24842665,0.000185,2]
[423203422,1779922252000,-396.38753763,0.000187,2]
[423203414,1779922252000,-560.45641049,0.000185,2]
[423203416,1779922252000,-1000.0,0.000185,2]
[423203417,1779922252000,-1798.84213545,0.0001856,86]
[423203425,1779922252000,-1860.28198548,0.000187,2]
[423203424,1779922252000,-435.44011652,0.000187,2]
[423203431,1779922252000,-197.2527157,0.000188,2]
[423203427,1779922252000,-767.12242937,0.000187,2]
[423203430,1779922252000,-5680.75332409,0.00018766,2]
[423203428,1779922252000,-560.45641049,0.000187,2]
[423203432,1779922252000,-1136.24842665,0.000189,2]
[423203426,1779922252000,-701.26637796,0.000187,2]
[423203434,1779922252000,-160.23,0.00018914,2]
[423203433,1779922252000,-6642.97,0.00018904,2]
[423203429,1779922252000,-1136.24842665,0.000187,2]
[423203367,1779922252000,-300.0,0.00018247,2]
[423203404,1779922252000,-1674.436857,0.00018493,2]
[423203402,1779922252000,-560.45641049,0.000184,2]
[423203403,1779922252000,-1136.24842665,0.000184,2]
[423203405,1779922252000,-18189.0,0.000185,30]
[423203373,1779922252000,-300.0,0.00018247,2]
[423203410,1779922252000,-435.44011652,0.000185,2]
[423203375,1779922252000,-300.0,0.00018247,2]
[423203374,1779922252000,-300.0,0.00018247,2]
[423203377,1779922252000,-5439.13633968,0.0001827,80]
[423203378,1779922252000,-300.0,0.00018274,2]
[423203384,1779922252000,-300.0,0.00018274,2]
[423203380,1779922252000,-300.0,0.00018274,2]
[423203383,1779922252000,-300.0,0.00018274,2]
[423203379,1779922252000,-300.0,0.00018274,2]
[423203381,1779922252000,-300.0,0.00018274,2]
[423203382,1779922252000,-300.0,0.00018274,2]
[423203385,1779922252000,-300.0,0.00018274,2]
[423203397,1779922252000,-511.61655018,0.000184,2]
[423203376,1779922252000,-300.0,0.00018247,2]
[423203388,1779922252000,-300.0,0.00018274,2]
[423203386,1779922252000,-300.0,0.00018274,2]
[423203409,1779922252000,-511.61655018,0.000185,2]
[423203400,1779922252000,-701.26637796,0.000184,2]
[423203398,1779922252000,-435.44011652,0.000184,2]
[423203396,1779922252000,-396.38753763,0.000184,2]
[423203394,1779922252000,-1990.29617374,0.000184,2]
[423203399,1779922252000,-1860.28198548,0.000184,2]
[423203395,1779922252000,-470.89841185,0.000184,2]
[423203393,1779922252000,-162.71220747,0.000184,2]
[423203389,1779922252000,-300.0,0.00018274,2]
[423203390,1779922252000,-300.0,0.00018274,2]
[423203392,1779922252000,-5680.75332409,0.00018283,2]
[423203391,1779922252000,-300.0,0.00018274,2]
[423203460,1779922253000,-1136.24842665,0.000191,2]
[423203465,1779922253000,-500.0,0.00019178,30]
[423203462,1779922253000,-500.0,0.00019178,2]
[423203473,1779922253000,-500.0,0.00019178,30]
[423203477,1779922253000,-500.0,0.00019178,2]
[423203463,1779922253000,-500.0,0.00019178,30]
[423203475,1779922253000,-549.61767011,0.00019178,30]
[423203474,1779922253000,-500.0,0.00019178,2]
[423203464,1779922253000,-500.0,0.00019178,2]
[423203471,1779922253000,-500.0,0.00019178,30]
[423203476,1779922253000,-500.0,0.00019178,2]
[423203472,1779922253000,-500.0,0.00019178,2]
[423203467,1779922253000,-500.0,0.00019178,30]
[423203466,1779922253000,-500.0,0.00019178,2]
[423203468,1779922253000,-500.0,0.00019178,2]
[423203469,1779922253000,-500.0,0.00019178,30]
[423203478,1779922253000,-500.0,0.00019178,2]
[423203479,1779922253000,-500.0,0.00019178,2]
[423203480,1779922253000,-194.29603291,0.00019178,2]
[423203455,1779922253000,-2246.876,0.000191,2]
[423203470,1779922253000,-500.0,0.00019178,2]
[423203457,1779922253000,-478.47,0.000191,2]
[423203448,1779922253000,-160.23,0.00019014,2]
[423203456,1779922253000,-2246.87,0.000191,2]
[423203436,1779922253000,-1003.35,0.00019,7]
[423203435,1779922253000,-160.23,0.00018964,2]
[423203437,1779922253000,-1000.0,0.00019,19]
[423203439,1779922253000,-24763.95486594,0.00019,2]
[423203438,1779922253000,-270000.0,0.00019,15]
[423203441,1779922253000,-349757.23456757,0.00019,2]
[423203440,1779922253000,-579.49,0.00019,2]
[423203442,1779922253000,-162.0,0.00019,30]
[423203447,1779922253000,-1000.0,0.00019,2]
[423203444,1779922253000,-160.0,0.00019,30]
[423203459,1779922253000,-195.1,0.000191,2]
[423203481,1779922253000,-600.0,0.00019178,2]
[423203446,1779922253000,-154.0,0.00019,2]
[423203443,1779922253000,-802.56720022,0.00019,5]
[423203451,1779922253000,-1511.25,0.000191,2]
[423203449,1779922253000,-160.24316263,0.00019064,2]
[423203454,1779922253000,-2246.876,0.000191,2]
[423203453,1779922253000,-1508.99,0.000191,2]
[423203450,1779922253000,-1511.255,0.000191,2]
[423203452,1779922253000,-1508.995,0.000191,2]
[423203461,1779922253000,-152.66581315,0.0001914,2]
[423203458,1779922253000,-2037.03,0.000191,2]
[423203445,1779922253000,-3822.0,0.00019,2]
[423203482,1779922253000,-775.22,0.00019178,2]
[423203486,1779922253000,-1500.0,0.00019178,2]
[423203484,1779922253000,-1287.612,0.00019178,2]
[423203508,1779922253000,-2312.624668,0.00019178,2]
[423203517,1779922253000,-3070.946274,0.00019178,2]
[423203516,1779922253000,-3070.946274,0.00019178,2]
[423203518,1779922253000,-3070.946274,0.00019178,2]
[423203519,1779922253000,-1215.06445526,0.00019178,2]
[423203514,1779922253000,-3070.946274,0.00019178,2]
[423203513,1779922253000,-3070.946274,0.00019178,2]
[423203515,1779922253000,-3070.946274,0.00019178,2]
[423203483,1779922253000,-1287.612,0.00019178,2]
[423203506,1779922253000,-1500.0,0.00019178,2]
[423203521,1779922253000,-6904.2262741,6.738e-05,2]
[423203522,1779922253000,-600.0,7.336e-05,2]
[423203524,1779922253000,-500.0,8.219e-05,2]
[423203531,1779922253000,-1000.0,0.00016,2]
[423203526,1779922253000,-1000.0,9.764e-05,2]
[423203525,1779922253000,-864.0,8.876e-05,2]
[423203527,1779922253000,-1000.0,0.0001074,2]
[423203529,1779922253000,-343.7411855,0.00015061,2]
[423203528,1779922253000,-1540.5411142,0.00013543,2]
[423203530,1779922253000,-1000.0,0.000155,2]
[423203523,1779922253000,-720.0,8.069e-05,2]
[423203509,1779922253000,-1864.0,0.00019178,7]
[423203520,1779922253000,-878.91953977,0.00019178,2]
[423203505,1779922253000,-300.0,0.00019178,2]
[423203510,1779922253000,-3070.946274,0.00019178,2]
[423203485,1779922253000,-1287.612,0.00019178,2]
[423203488,1779922253000,-1287.612,0.00019178,2]
[423203487,1779922253000,-1287.612,0.00019178,2]
[423203490,1779922253000,-1287.612,0.00019178,2]
[423203498,1779922253000,-643.806,0.00019178,2]
[423203491,1779922253000,-1287.612,0.00019178,2]
[423203500,1779922253000,-643.806,0.00019178,2]
[423203489,1779922253000,-1287.612,0.00019178,2]
[423203499,1779922253000,-1500.0,0.00019178,2]
[423203492,1779922253000,-1500.0,0.00019178,2]
[423203501,1779922253000,-300.0,0.00019178,2]
[423203494,1779922253000,-1500.0,0.00019178,2]
[423203493,1779922253000,-1500.0,0.00019178,2]
[423203512,1779922253000,-3070.946274,0.00019178,2]
[423203511,1779922253000,-3070.946274,0.00019178,2]
[423203503,1779922253000,-1500.0,0.00019178,2]
[423203507,1779922253000,-1500.0,0.00019178,2]
[423203504,1779922253000,-1500.0,0.00019178,2]
[423203496,1779922253000,-643.806,0.00019178,2]
[423203497,1779922253000,-643.806,0.00019178,2]
[423203495,1779922253000,-1287.612,0.00019178,2]
[423203502,1779922253000,-1500.0,0.00019178,2]
[423203539,1779922254000,-3070.946274,0.00019178,2]
[423203534,1779922254000,-1000.0,0.000175,2]
[423203532,1779922254000,-1000.0,0.000165,2]
[423203533,1779922254000,-1000.0,0.00017,2]
[423203535,1779922254000,-1000.0,0.00018,2]
[423203536,1779922254000,-976.96227897,0.00019178,2]
[423203537,1779922254000,-3070.946274,0.00019178,2]
[423203540,1779922254000,-3070.946274,0.00019178,2]
[423203548,1779922254000,-368.42160644,0.0001918,120]
[423203541,1779922254000,-3070.946274,0.00019178,2]
[423203538,1779922254000,-3070.946274,0.00019178,2]
[423203547,1779922254000,-6642.97,0.00019178,2]
[423203542,1779922254000,-3070.946274,0.00019178,2]
[423203543,1779922254000,-3070.946274,0.00019178,2]
[423203544,1779922254000,-3070.946274,0.00019178,2]
[423203546,1779922254000,-3070.946272,0.00019178,2]
[423203549,1779922254000,-8554.64333076,0.00019197,30]
[423203545,1779922254000,-3070.946274,0.00019178,2]
[423203553,1779922675000,-5000.0,5.618e-05,2]
[423203554,1779922853000,-426.14096438,5.728e-05,2]
[423203555,1779922870000,-500.0,5.728e-05,2]
[423203556,1779922887000,-500.0,5.728e-05,2]
[423203557,1779922903000,-500.0,5.728e-05,2]
[423203558,1779922920000,-500.0,5.728e-05,2]
[423203559,1779922937000,-500.0,5.728e-05,2]
[423203560,1779922954000,-500.0,5.728e-05,2]
[423203561,1779922971000,-500.0,5.729e-05,2]
[423203644,1779923432000,-386.005,5.724e-05,2]
[423203652,1779923432000,-113.995,5.724e-05,2]
[423203655,1779923432000,-500.0,5.724e-05,2]
[423203654,1779923432000,-500.0,5.724e-05,2]
[423203656,1779923432000,-500.0,5.724e-05,2]
[423203659,1779923432000,-500.0,5.724e-05,2]
[423203658,1779923432000,-500.0,5.724e-05,2]
[423203660,1779923432000,-398.49918646,5.724e-05,2]
[423203657,1779923432000,-249.78982674,5.724e-05,2]
[423203678,1779923442000,-500.0,5.723e-05,2]
[423203674,1779923442000,-372.3503575,5.723e-05,2]
[423203675,1779923442000,-500.0,5.723e-05,2]
[423203683,1779923442000,-500.0,5.723e-05,2]
[423203680,1779923442000,-500.0,5.723e-05,2]
[423203679,1779923442000,-500.0,5.723e-05,2]
[423203676,1779923442000,-500.0,5.723e-05,2]
[423203677,1779923442000,-500.0,5.723e-05,2]
[423203681,1779923442000,-500.0,5.723e-05,2]
[423203692,1779923442000,-500.0,5.723e-05,2]
[423203686,1779923442000,-500.0,5.723e-05,2]
[423203684,1779923442000,-500.0,5.723e-05,2]
[423203691,1779923442000,-500.0,5.723e-05,2]
[423203687,1779923442000,-500.0,5.723e-05,2]
[423203688,1779923442000,-500.0,5.723e-05,2]
[423203685,1779923442000,-500.0,5.723e-05,2]
[423203690,1779923442000,-500.0,5.723e-05,2]
[423203689,1779923442000,-500.0,5.723e-05,2]
[423203682,1779923442000,-500.0,5.723e-05,2]
[423203701,1779923443000,-500.0,5.723e-05,2]
[423203704,1779923443000,-215.14478953,5.785e-05,2]
[423203706,1779923443000,-1829.36073876,6.986e-05,2]
[423203703,1779923443000,-500.0,5.723e-05,2]
[423203705,1779923443000,-1829.36073876,6.986e-05,2]
[423203702,1779923443000,-567.12310066,5.723e-05,2]
[423203700,1779923443000,-500.0,5.723e-05,2]
[423203695,1779923443000,-500.0,5.723e-05,2]
[423203698,1779923443000,-500.0,5.723e-05,2]
[423203696,1779923443000,-500.0,5.723e-05,2]
[423203697,1779923443000,-500.0,5.723e-05,2]
[423203693,1779923443000,-500.0,5.723e-05,2]
[423203694,1779923443000,-500.0,5.723e-05,2]
[423203699,1779923443000,-278.30919293,5.723e-05,2]
[423203707,1779923443000,-1829.36073876,6.986e-05,2]
[423203709,1779923443000,-1829.36073876,6.986e-05,2]
[423203717,1779923443000,-1829.36073876,6.986e-05,2]
[423203721,1779923443000,-1829.36073876,6.986e-05,2]
[423203722,1779923443000,-1829.36073876,6.986e-05,2]
[423203724,1779923443000,-968.13929442,6.99e-05,2]
[423203719,1779923443000,-1829.36073876,6.986e-05,2]
[423203708,1779923443000,-1829.36073876,6.986e-05,2]
[423203716,1779923443000,-1829.36073876,6.986e-05,2]
[423203723,1779923443000,-19086.0623877,6.99e-05,2]
[423203720,1779923443000,-1829.36073876,6.986e-05,2]
[423203714,1779923443000,-1829.36073876,6.986e-05,2]
[423203711,1779923443000,-1829.36073876,6.986e-05,2]
[423203725,1779923443000,-29645.73086605,6.99e-05,2]
[423203710,1779923443000,-1829.36073876,6.986e-05,2]
[423203712,1779923443000,-1829.36073876,6.986e-05,2]
[423203718,1779923443000,-1829.36073876,6.986e-05,2]
[423203762,1779923444000,-1013.27128735,6.99e-05,2]
[423203799,1779923447000,-27605.26247651,6.99e-05,2]
[423203820,1779924314000,1018.72566717,0.00019178,120]
[423203930,1779924634000,-1741.96337064,6.786e-05,2]
[423203923,1779924634000,-1741.96337064,6.786e-05,2]
[423203925,1779924634000,-1741.96337064,6.786e-05,2]
[423203931,1779924634000,-552.06113774,6.786e-05,2]
[423203932,1779924634000,-327.0,6.786e-05,2]
[423203933,1779924634000,-862.9022329,6.786e-05,2]
[423203924,1779924634000,-1741.96337064,6.786e-05,2]
[423203926,1779924634000,-1741.96337064,6.786e-05,2]
[423203928,1779924634000,-1741.96337064,6.786e-05,2]
[423203934,1779924634000,-445.5812371,6.786e-05,2]
[423203929,1779924634000,-1741.96337064,6.786e-05,2]
[423203927,1779924634000,-1741.96337064,6.786e-05,2]
[423203961,1779924638000,-1741.96337064,6.786e-05,2]
[423203962,1779924638000,-601.7586409,6.786e-05,2]
[423203960,1779924638000,-1741.96337064,6.786e-05,2]
[423203959,1779924638000,-1296.38213354,6.786e-05,2]
[423203964,1779924639000,-300.0,6.786e-05,2]